bitfinex/quotes_BTCUSD_20250115
["timestamp","ask_amount","ask_price","bid_price","bid_amount"]
[1736910003413,0.89549894,96996.0,96995.0,6.6e-07]
[1736910006385,0.89549894,96996.0,96995.0,0.00085456]
[1736910006603,0.71200051,96996.0,96995.0,0.00085456]
[1736910006803,1.00151905,96996.0,96995.0,0.00085456]
[1736910007716,0.89729213,96996.0,96995.0,0.00085456]
[1736910007945,0.17976678,96996.0,96995.0,0.02385456]
[1736910008150,0.11326521,96996.0,96995.0,0.02385456]
[1736910008360,0.45216474,96996.0,96995.0,0.02385456]
[1736910008570,0.60216474,96996.0,96995.0,0.02385456]
[1736910008955,0.60016474,96996.0,96995.0,0.02385456]
[1736910009208,0.70639166,96996.0,96995.0,0.00085456]
[1736910009427,0.36749213,96996.0,96995.0,0.00085456]
[1736910009622,0.36549213,96996.0,96995.0,0.00085456]
[1736910009903,0.36249213,96996.0,96995.0,0.00085456]
[1736910010404,0.36649213,96996.0,96995.0,0.00085456]
[1736910010628,0.36249213,96996.0,96995.0,0.00085456]
[1736910010928,0.36649213,96996.0,96995.0,0.00085456]
[1736910011824,0.36049213,96996.0,96995.0,0.00085456]
[1736910012080,0.36149213,96996.0,96995.0,0.00085456]
[1736910013239,0.36349213,96996.0,96995.0,0.00085456]
[1736910017918,0.25926521,96996.0,96995.0,0.00085456]
[1736910018286,0.3510652,96996.0,96995.0,0.00085456]
[1736910020920,0.25926521,96996.0,96995.0,0.00085456]
[1736910022991,0.3969652,96996.0,96995.0,0.00085456]
[1736910024761,0.31346677,96996.0,96995.0,0.00085456]
[1736910024964,0.00479319,96996.0,96995.0,0.00085456]
[1736910025152,0.08829162,96996.0,96995.0,0.15065456]
[1736910025344,0.23829162,96996.0,96995.0,0.15065456]
[1736910025986,0.23729162,96996.0,96995.0,0.15065456]
[1736910026483,0.15379319,96996.0,96995.0,0.15165456]
[1736910026691,0.23529162,96996.0,96995.0,0.15165456]
[1736910026890,0.23529162,96996.0,96995.0,0.15465456]
[1736910027334,0.23529162,96996.0,96995.0,0.15165456]
[1736910027567,0.30110118,96996.0,96995.0,0.15465456]
[1736910027773,0.23529162,96996.0,96995.0,0.15365456]
[1736910027997,0.00179319,96996.0,96995.0,0.25788148]
[1736910028211,0.23529162,96996.0,96995.0,0.25888148]
[1736910028358,0.15179319,96996.0,96995.0,0.25888148]
[1736910028578,0.00179319,96996.0,96995.0,0.25888148]
[1736910028981,0.00179319,96996.0,96995.0,0.25788148]
[1736910029181,0.00179319,96996.0,96995.0,0.25888148]
[1736910029384,0.00179319,96996.0,96995.0,0.46507748]
[1736910030759,0.09214213,97012.0,97006.0,0.1288]
[1736910030956,0.09214213,97012.0,97000.0,0.08048667]
[1736910030957,0.09214213,97012.0,97008.0,0.1288]
[1736910031198,0.09214213,97012.0,97010.0,0.0825]
[1736910031406,0.09214213,97012.0,97011.0,0.10422692]
[1736910031621,0.28964243,97020.0,97011.0,0.10422692]
[1736910031874,0.28964243,97020.0,97012.0,0.0825]
[1736910032088,0.08349843,97023.0,97014.0,0.0825]
[1736910032313,0.08349843,97020.0,97016.0,0.0825]
[1736910032537,0.08349843,97021.0,97017.0,0.10422692]
[1736910032742,0.206143,97020.0,97017.0,0.10422692]
[1736910033624,0.08349843,97021.0,97017.0,0.10422692]
[1736910034343,0.23349843,97021.0,97017.0,0.10422692]
[1736910034778,0.15,97021.0,97018.0,0.02403068]
[1736910034977,0.15,97021.0,97020.0,0.0693]
[1736910035183,0.15,97021.0,97020.0,0.17352692]
[1736910035440,0.206121,97030.0,97020.0,0.17352692]
[1736910035602,0.01031631,97024.0,97021.0,0.10422692]
[1736910035782,0.206121,97030.0,97021.0,0.10422692]
[1736910036203,0.28961943,97030.0,97021.0,0.10422692]
[1736910036839,0.29971121,97030.0,97021.0,0.10422692]
[1736910037008,0.08349843,97023.0,97021.0,0.10422692]
[1736910037367,0.08349843,97022.0,97021.0,0.10422692]
[1736910037730,0.15,97027.0,97021.0,0.10422692]
[1736910038154,0.15,97027.0,97021.0,0.10722692]
[1736910038519,0.15,97027.0,97021.0,0.10422692]
[1736910038782,0.15,97027.0,97021.0,0.10522692]
[1736910039251,0.08349843,97022.0,97021.0,0.10522692]
[1736910039931,0.15,97025.0,97021.0,0.10522692]
[1736910040381,0.15,97029.0,97022.0,0.0825]
[1736910040586,0.15,97029.0,97023.0,0.18672692]
[1736910040818,0.15,97029.0,97024.0,0.0825]
[1736910041020,0.085291,97031.0,97025.0,0.10422692]
[1736910041370,0.00179257,97031.0,97025.0,0.10422692]
[1736910042182,0.0022878,97031.0,97025.0,0.10422692]
[1736910042765,0.0022878,97031.0,97026.0,0.1288]
[1736910043144,0.0022878,97031.0,97027.0,0.10422692]
[1736910043358,0.27214881,97030.0,97027.0,0.10422692]
[1736910043556,0.27214881,97030.0,97026.0,0.0463]
[1736910043767,0.47826981,97030.0,97026.0,0.15052692]
[1736910043943,0.206121,97030.0,97026.0,0.15052692]
[1736910044185,0.412244,97030.0,97026.0,0.15052692]
[1736910044391,0.43962843,97026.0,97025.0,0.004]
[1736910044591,0.43962843,97026.0,97025.0,0.006]
[1736910044799,0.43962843,97026.0,97025.0,0.002]
[1736910044928,0.43962843,97026.0,97004.0,0.0463]
[1736910044929,0.206166,97010.0,97004.0,0.0463]
[1736910045127,0.206166,97010.0,97005.0,0.10422692]
[1736910045563,0.206155,97014.0,97005.0,0.10422692]
[1736910047184,0.206155,97014.0,97005.0,0.10922692]
[1736910047414,0.20463962,97014.0,97005.0,0.10922692]
[1736910047582,0.21490106,97014.0,97005.0,0.11022692]
[1736910048026,0.21490106,97014.0,97005.0,0.10522692]
[1736910048208,0.21490106,97014.0,97005.0,0.10922692]
[1736910048840,0.08349843,97020.0,97007.0,0.0752]
[1736910049052,0.206133,97025.0,97011.0,0.206162]
[1736910049258,0.01042805,97023.0,97012.0,0.22802692]
[1736910049455,0.15,97024.0,97012.0,0.22802692]
[1736910049915,0.15,97024.0,97013.0,0.206157]
[1736910050133,0.08349843,97033.0,97014.0,0.10422692]
[1736910050351,0.0022878,97031.0,97019.0,0.32876602]
[1736910050565,0.0022878,97031.0,97020.0,0.10422692]
[1736910050789,0.0022878,97031.0,97020.0,0.1052575]
[1736910051210,0.0022878,97031.0,97021.0,0.1238]
[1736910051418,0.0022878,97031.0,97022.0,0.10422692]
[1736910052764,0.0022878,97031.0,97023.0,0.20716658]
[1736910052994,0.0022878,97031.0,97025.0,0.206132]
[1736910053240,0.0022878,97031.0,97026.0,0.10422692]
[1736910053455,0.0022878,97031.0,97028.0,0.0752]
[1736910053665,0.0022878,97031.0,97029.0,0.10422692]
[1736910055059,0.0022878,97031.0,97029.0,0.11022692]
[1736910056360,0.0022878,97031.0,97029.0,0.11222692]
[1736910058765,0.0022878,97031.0,97030.0,0.45817844]
[1736910058969,0.0022878,97031.0,97030.0,0.45714792]
[1736910059179,0.0022878,97031.0,97030.0,0.47364949]
[1736910059903,0.0022878,97031.0,97030.0,0.47564949]
[1736910060338,0.0022878,97031.0,97030.0,0.48464949]
[1736910060972,0.0022878,97031.0,97030.0,0.46814792]
[1736910061202,0.0022878,97031.0,97030.0,0.48264949]
[1736910061441,0.0022878,97031.0,97030.0,0.46614792]
[1736910061646,0.0022878,97031.0,97030.0,0.24302692]
[1736910066419,0.0022878,97031.0,97030.0,0.26602692]
[1736910068461,0.0022878,97031.0,97030.0,0.59172692]
[1736910078748,0.0022878,97031.0,97030.0,0.60822849]
[1736910079513,0.0022878,97031.0,97030.0,0.64033216]
[1736910080186,0.00179466,97062.0,97049.0,0.679681]
[1736910080355,0.0019408,97050.0,97049.0,0.80040949]
[1736910081471,0.0019408,97050.0,97049.0,0.81083062]
[1736910082194,0.0019408,97050.0,97049.0,0.81683062]
[1736910082333,0.0019408,97050.0,97049.0,1.12595062]
[1736910082536,0.0019408,97050.0,97049.0,1.15516496]
[1736910083405,0.0019408,97050.0,97049.0,1.79976496]
[1736910084027,0.0019408,97050.0,97049.0,1.79376496]
[1736910084224,0.0019408,97050.0,97049.0,1.82586505]
[1736910084467,0.0019408,97050.0,97049.0,1.83186505]
[1736910084713,0.0019408,97050.0,97049.0,1.79976496]
[1736910085073,0.0019408,97050.0,97049.0,1.83185444]
[1736910085281,0.0019408,97050.0,97049.0,1.97285444]
[1736910085592,0.0019408,97050.0,97049.0,1.98185444]
[1736910086372,0.0019408,97050.0,97049.0,1.97285444]
[1736910086569,0.0019408,97050.0,97049.0,1.98185444]
[1736910086831,0.0019408,97050.0,97049.0,1.97285444]
[1736910087213,0.0019408,97050.0,97049.0,1.97585444]
[1736910087415,0.0019408,97050.0,97049.0,1.98185444]
[1736910088197,0.0019408,97050.0,97049.0,1.97585444]
[1736910088632,0.0019408,97050.0,97049.0,1.98285444]
[1736910090587,0.0019408,97050.0,97049.0,1.98295444]
[1736910095467,0.0019408,97050.0,97049.0,1.98895444]
[1736910095672,0.0019408,97050.0,97049.0,1.96645287]
[1736910095882,0.0019408,97050.0,97049.0,1.98895444]
[1736910096097,0.0019408,97050.0,97049.0,1.70995444]
[1736910096268,0.0019408,97050.0,97049.0,1.66736339]
[1736910096428,0.0019408,97050.0,97049.0,1.68386496]
[1736910096628,0.0019408,97050.0,97049.0,1.70686496]
[1736910096828,0.0019408,97050.0,97049.0,1.69036339]
[1736910097054,0.0019408,97050.0,97049.0,1.70686496]
[1736910098281,0.0019408,97050.0,97049.0,1.69036339]
[1736910098483,0.0019408,97050.0,97049.0,1.70686496]
[1736910099527,0.0019408,97050.0,97049.0,1.95686496]
[1736910099757,0.00179466,97062.0,97061.0,0.62465657]
[1736910099990,0.00179466,97062.0,97061.0,1.94030986]
[1736910100194,0.00179466,97062.0,97061.0,3.44030986]
[1736910100195,6.6e-07,97062.0,97061.0,3.44030986]
[1736910100389,0.00179299,97093.0,97092.0,0.20599]
[1736910100608,0.00194175,97093.0,97092.0,0.66573822]
[1736910100828,0.00194175,97093.0,97092.0,0.66470849]
[1736910101467,0.00194175,97093.0,97092.0,0.66770849]
[1736910102086,0.00194175,97093.0,97092.0,0.69926756]
[1736910102545,0.00194175,97093.0,97092.0,0.69936756]
[1736910103372,0.00194175,97093.0,97092.0,0.69636756]
[1736910103654,0.00194175,97093.0,97092.0,0.71036756]
[1736910103840,0.00194175,97093.0,97092.0,0.70136756]
[1736910104273,0.00194175,97093.0,97092.0,1.03106756]
[1736910104543,0.00194175,97093.0,97092.0,1.03806756]
[1736910107420,0.00115103,97108.0,97101.0,0.01650157]
[1736910107621,0.00124299,97108.0,97107.0,0.228958]
[1736910107855,0.00124299,97108.0,97107.0,0.33318492]
[1736910108728,0.00124299,97108.0,97107.0,0.10422692]
[1736910110231,0.19719799,97109.0,97107.0,0.11322692]
[1736910110461,0.19719799,97109.0,97108.0,0.10422692]
[1736910113092,0.01043281,97111.0,97108.0,0.11422692]
[1736910113301,0.205946,97113.0,97108.0,0.11422692]
[1736910113741,0.0008529,97109.0,97108.0,0.11422692]
[1736910113950,0.0008529,97109.0,97108.0,0.10422692]
[1736910114369,0.0008529,97109.0,97108.0,0.10622692]
[1736910114766,0.10963356,97109.0,97108.0,0.002]
[1736910115184,0.10963356,97109.0,97108.0,0.008]
[1736910115584,0.0467529,97109.0,97108.0,0.002]
[1736910115821,0.0008529,97109.0,97108.0,0.004]
[1736910116107,0.0008529,97109.0,97108.0,0.002]
[1736910116763,0.0008529,97109.0,97108.0,0.10722692]
[1736910117287,0.0008529,97109.0,97108.0,0.10922692]
[1736910117724,0.0008529,97109.0,97108.0,0.11122692]
[1736910118423,0.0008529,97109.0,97108.0,0.10622692]
[1736910118534,0.0008529,97109.0,97108.0,0.11122692]
[1736910118999,0.0008529,97109.0,97108.0,0.10922692]
[1736910119523,0.0008529,97109.0,97108.0,0.10522692]
[1736910119757,0.0008529,97109.0,97108.0,0.11122692]
[1736910120010,0.0008529,97109.0,97108.0,0.10422692]
[1736910120524,0.0008529,97109.0,97108.0,0.11322692]
[1736910120985,0.0008529,97109.0,97108.0,0.11022692]
[1736910121828,0.07211027,97109.0,97108.0,0.11022692]
[1736910122035,0.07211027,97109.0,97108.0,0.006]
[1736910122036,0.0822529,97109.0,97108.0,0.006]
[1736910122220,0.0822529,97109.0,97108.0,0.009]
[1736910122661,0.0822529,97109.0,97108.0,0.006]
[1736910123089,0.0822529,97109.0,97108.0,0.001]
[1736910123505,0.36760427,97109.0,97108.0,0.002]
[1736910123706,0.36760427,97109.0,97108.0,0.003]
[1736910124952,0.51760427,97109.0,97108.0,0.003]
[1736910125173,0.6011027,97109.0,97108.0,0.002]
[1736910125390,0.51846643,97102.0,97101.0,0.00179109]
[1736910125602,0.62269335,97102.0,97101.0,0.00179109]
[1736910125811,0.67259335,97102.0,97101.0,0.00179109]
[1736910127984,1.01503346,97102.0,97101.0,0.00179109]
[1736910128937,1.21742225,97102.0,97101.0,0.00179109]
[1736910130108,1.401001,97102.0,97101.0,0.00179109]
[1736910130976,1.21742225,97102.0,97101.0,0.00179109]
[1736910131542,1.22774702,97102.0,97101.0,0.00179109]
[1736910131791,1.1235201,97102.0,97101.0,0.00179109]
[1736910131969,1.1255201,97102.0,97101.0,0.00179109]
[1736910132536,1.1235201,97102.0,97101.0,0.00179109]
[1736910132736,1.1255201,97102.0,97101.0,0.00179109]
[1736910133194,0.78491812,97102.0,97101.0,0.00179109]
[1736910133498,0.88914504,97102.0,97101.0,0.00179109]
[1736910134145,1.02752677,97102.0,97101.0,0.00179109]
[1736910134999,1.02652677,97102.0,97101.0,0.00179109]
[1736910136093,1.02652677,97102.0,97101.0,9e-08]
[1736910136315,0.61398643,97093.0,97092.0,0.307299]
[1736910136540,0.61398643,97093.0,97092.0,0.00019196]
[1736910137168,0.206064,97057.0,97049.0,0.075]
[1736910137372,0.12262302,97060.0,97050.0,0.10422692]
[1736910137585,0.206077,97051.0,97050.0,0.10422692]
[1736910138614,0.206051,97064.0,97050.0,0.31030592]
[1736910138813,0.20605,97064.0,97051.0,0.077]
[1736910139019,0.20605,97064.0,97052.0,0.10422692]
[1736910139458,0.001,97060.0,97052.0,0.10422692]
[1736910139659,0.206069,97055.0,97052.0,0.10422692]
[1736910140240,0.206069,97055.0,97052.0,0.10622692]
[1736910140920,0.206069,97055.0,97052.0,0.11322692]
[1736910141616,0.206069,97055.0,97052.0,0.11122692]
[1736910142026,0.206069,97055.0,97052.0,0.11522692]
[1736910142225,0.206069,97055.0,97052.0,0.10822692]
[1736910142609,0.207069,97055.0,97052.0,0.11022692]
[1736910142810,0.206069,97055.0,97052.0,0.10422692]
[1736910143016,0.206062,97058.0,97052.0,0.10722692]
[1736910143253,0.001,97055.0,97053.0,0.1]
[1736910143381,0.001,97055.0,97054.0,0.17582692]
[1736910143589,0.001,97055.0,97054.0,0.25282692]
[1736910144051,0.206009,97084.0,97071.0,0.206033]
[1736910144199,0.08249843,97081.0,97072.0,0.10422692]
[1736910149266,0.206017,97080.0,97072.0,0.11322692]
[1736910150007,0.206017,97080.0,97072.0,0.10822692]
[1736910152025,0.206014,97081.0,97072.0,0.10822692]
[1736910153051,0.206014,97081.0,97072.0,0.10122692]
[1736910153410,0.206014,97081.0,97072.0,0.10722692]
[1736910153998,0.206014,97081.0,97072.0,0.10522692]
[1736910154211,0.206014,97081.0,97072.0,0.10722692]
[1736910154625,0.21618252,97081.0,97072.0,0.10722692]
[1736910155195,0.205984,97095.0,97075.0,0.206026]
[1736910155406,0.09221728,97104.0,97091.0,0.285892]
[1736910155612,0.09221728,97104.0,97091.0,0.45961892]
[1736910156417,0.20596,97107.0,97091.0,0.45961892]
[1736910158264,0.20596,97107.0,97091.0,0.46861892]
[1736910158669,0.20596,97107.0,97091.0,0.47261892]
[1736910158882,0.01039497,97102.0,97091.0,0.47261892]
[1736910159454,0.20596,97107.0,97091.0,0.47261892]
[1736910160338,0.01009121,97105.0,97091.0,0.47261892]
[1736910161313,0.01009121,97105.0,97091.0,0.79831892]
[1736910170077,0.20597,97102.0,97091.0,0.44292692]
[1736910170287,0.08249843,97093.0,97091.0,0.3387]
[1736910170490,0.12831846,97092.0,97091.0,0.013]
[1736910170694,0.13839916,97092.0,97091.0,0.013]
[1736910170929,0.37119916,97092.0,97091.0,0.013]
[1736910171136,0.42059916,97092.0,97091.0,0.013]
[1736910171345,0.42059916,97092.0,97091.0,0.009]
[1736910171549,0.42059916,97092.0,97068.0,0.09248174]
[1736910171550,0.28852843,97073.0,97068.0,0.09248174]
[1736910171749,0.52132843,97073.0,97072.0,0.00100276]
[1736910171957,0.43852843,97073.0,97072.0,0.00100276]
[1736910173034,0.43852843,97073.0,97072.0,0.00400276]
[1736910173257,0.28852843,97073.0,97072.0,0.00100276]
[1736910173476,0.08249843,97073.0,97072.0,0.00400276]
[1736910173692,0.08249843,97076.0,97072.0,0.10822968]
[1736910173835,0.206016,97080.0,97073.0,0.10422692]
[1736910174247,0.08249843,97076.0,97073.0,0.10422692]
[1736910175659,0.08249843,97076.0,97073.0,0.10522692]
[1736910175865,0.206026,97075.0,97073.0,0.10522692]
[1736910176068,0.206026,97075.0,97073.0,0.10422692]
[1736910176275,0.206026,97075.0,97073.0,0.10722692]
[1736910176833,0.08249843,97076.0,97073.0,0.10822692]
[1736910177488,0.08249843,97076.0,97073.0,0.10722692]
[1736910177702,0.28851443,97080.0,97073.0,0.10822692]
[1736910177908,0.206026,97075.0,97073.0,0.10822692]
[1736910178067,0.206026,97075.0,97073.0,0.10522692]
[1736910178264,0.206026,97075.0,97073.0,0.10422692]
[1736910178577,0.206026,97075.0,97073.0,0.10622692]
[1736910179004,0.206026,97075.0,97073.0,0.11022692]
[1736910180322,0.206026,97075.0,97073.0,0.10822692]
[1736910180758,0.206026,97075.0,97073.0,0.11022692]
[1736910183004,0.206016,97080.0,97073.0,0.11022692]
[1736910183413,0.206027,97075.0,97073.0,0.11022692]
[1736910183778,0.206027,97075.0,97073.0,0.10822692]
[1736910183977,0.206027,97075.0,97073.0,0.11022692]
[1736910184379,0.206017,97079.0,97073.0,0.10622692]
[1736910184595,0.28851543,97079.0,97073.0,0.11122692]
[1736910184774,0.206022,97077.0,97073.0,0.11122692]
[1736910185074,0.21652633,97085.0,97073.0,0.10922692]
[1736910185278,0.206006,97085.0,97073.0,0.10922692]
[1736910185483,0.00179299,97092.0,97074.0,0.12825696]
[1736910185709,0.00179299,97092.0,97084.0,0.206006]
[1736910185911,0.00179299,97092.0,97091.0,0.205992]
[1736910186133,0.00179299,97092.0,97091.0,0.31021892]
[1736910186335,0.00179299,97092.0,97091.0,0.10422692]
[1736910186699,0.00179299,97092.0,97091.0,0.35901892]
[1736910186935,0.00179299,97092.0,97091.0,0.15302692]
[1736910188151,0.00179299,97092.0,97091.0,0.16602692]
[1736910188707,0.00179299,97092.0,97091.0,0.37201892]
[1736910189643,0.00179299,97092.0,97091.0,0.39501892]
[1736910190501,0.00179299,97092.0,97091.0,0.39101892]
[1736910191149,0.00179299,97092.0,97091.0,0.38601892]
[1736910191287,0.00179299,97092.0,97091.0,0.39501892]
[1736910191488,0.00179299,97092.0,97091.0,0.40544569]
[1736910192332,0.00179299,97092.0,97091.0,0.12765369]
[1736910192542,0.00179299,97092.0,97091.0,0.11722692]
[1736910193360,0.00179299,97092.0,97091.0,0.11322692]
[1736910193797,0.00179299,97092.0,97091.0,0.11722692]
[1736910194193,0.00179299,97092.0,97091.0,0.10822692]
[1736910194409,0.00179299,97092.0,97091.0,0.11722692]
[1736910195605,0.20778299,97092.0,97091.0,0.11722692]
[1736910196494,0.00179299,97092.0,97091.0,0.11722692]
[1736910196626,0.00179299,97092.0,97091.0,0.14022692]
[1736910196979,0.00179299,97092.0,97091.0,0.21712692]
[1736910205038,0.00179299,97092.0,97091.0,0.26462692]
[1736910205244,0.00179299,97092.0,97091.0,0.28212849]
[1736910205441,0.00179299,97092.0,97091.0,0.43212849]
[1736910206088,0.00179299,97092.0,97091.0,0.52812849]
[1736910206307,0.00179299,97092.0,97091.0,0.53212849]
[1736910207138,0.00179299,97092.0,97091.0,0.56421634]
[1736910207349,0.00179299,97092.0,97091.0,0.55521634]
[1736910207730,0.00179299,97092.0,97091.0,0.56421634]
[1736910207932,0.00179299,97092.0,97091.0,0.86020634]
[1736910208331,0.00179299,97092.0,97091.0,0.86920634]
[1736910208530,0.00179299,97092.0,97091.0,0.86020634]
[1736910208735,0.00179299,97092.0,97091.0,0.86720634]
[1736910208980,0.00179299,97092.0,97091.0,1.06116982]
[1736910209321,0.00179299,97092.0,97091.0,1.05416982]
[1736910209611,0.00179299,97092.0,97091.0,1.06316982]
[1736910210044,0.00179299,97092.0,97091.0,0.87820634]
[1736910210613,0.00179299,97092.0,97091.0,0.77820634]
[1736910210807,0.00179299,97092.0,97091.0,0.47871692]
[1736910210984,0.00179299,97092.0,97091.0,0.55388998]
[1736910211192,0.00179299,97092.0,97091.0,0.51538998]
[1736910211369,0.00179299,97092.0,97091.0,0.52438998]
[1736910211589,0.00179299,97092.0,97091.0,0.52938998]
[1736910211810,0.00179299,97092.0,97091.0,0.50638998]
[1736910212015,0.00179299,97092.0,97091.0,0.75477072]
[1736910212429,0.00179299,97092.0,97091.0,0.77177072]
[1736910212877,0.00179299,97092.0,97091.0,0.76877072]
[1736910214134,0.00179299,97092.0,97091.0,0.77177072]
[1736910214520,0.00179299,97092.0,97091.0,0.74477072]
[1736910214718,0.00179299,97092.0,97091.0,0.75377072]
[1736910214924,0.00179299,97092.0,97091.0,0.74877072]
[1736910215139,0.00179299,97092.0,97091.0,0.75377072]
[1736910215342,0.00179299,97092.0,97091.0,0.76277072]
[1736910215779,0.00179299,97092.0,97091.0,0.73977072]
[1736910215933,0.00179299,97092.0,97091.0,0.74877072]
[1736910216139,0.00179299,97092.0,97091.0,0.75377072]
[1736910218279,0.00179299,97092.0,97091.0,0.74477072]
[1736910218486,0.00179299,97092.0,97091.0,0.73977072]
[1736910218691,0.00179299,97092.0,97091.0,0.75277072]
[1736910219280,0.00179299,97092.0,97091.0,0.74877072]
[1736910220165,0.00179299,97092.0,97091.0,0.75277072]
[1736910220353,0.00179299,97092.0,97091.0,0.74377072]
[1736910220761,0.00179299,97092.0,97091.0,0.75277072]
[1736910220910,0.00179299,97092.0,97091.0,0.74377072]
[1736910221335,0.00179299,97092.0,97091.0,0.74877072]
[1736910221554,0.00179299,97092.0,97091.0,0.73977072]
[1736910221756,0.00179299,97092.0,97091.0,0.74377072]
[1736910222089,0.00179299,97092.0,97091.0,0.75277072]
[1736910222397,0.00179299,97092.0,97091.0,0.74377072]
[1736910223624,0.00179299,97092.0,97091.0,0.75277072]
[1736910226735,0.07719299,97092.0,97091.0,0.3228438]
[1736910226937,0.15969142,97092.0,97091.0,0.3228438]
[1736910227773,0.16981105,97092.0,97091.0,0.3188438]
[1736910228011,0.16981105,97092.0,97091.0,0.3098438]
[1736910228222,0.37798866,97092.0,97091.0,0.3158438]
[1736910228439,0.37798866,97092.0,97091.0,0.3118438]
[1736910228669,0.37798866,97092.0,97091.0,0.3098438]
[1736910228877,0.37798866,97092.0,97091.0,0.3108438]
[1736910229782,0.42318866,97092.0,97091.0,0.3108438]
[1736910229993,0.56157039,97092.0,97091.0,0.3108438]
[1736910230243,0.56157039,97092.0,97091.0,0.3098438]
[1736910231077,0.76715421,97092.0,97091.0,0.3098438]
[1736910231418,0.76515421,97092.0,97091.0,0.3098438]
[1736910231648,0.76815421,97092.0,97091.0,0.3098438]
[1736910232050,0.76715421,97092.0,97091.0,0.3098438]
[1736910232261,0.9528713,97092.0,97091.0,0.3098438]
[1736910233095,0.89469369,97092.0,97091.0,0.3098438]
[1736910233298,0.7099766,97092.0,97091.0,0.3098438]
[1736910234036,0.7069766,97092.0,97091.0,0.3098438]
[1736910234268,0.50449894,97092.0,97091.0,0.3098438]
[1736910234444,0.50649894,97092.0,97091.0,0.3098438]
[1736910234586,0.61072586,97092.0,97091.0,0.3098438]
[1736910234787,0.60872586,97092.0,97091.0,0.3098438]
[1736910235076,0.47023797,97092.0,97091.0,0.3098438]
[1736910235339,0.47123797,97092.0,97091.0,0.3098438]
[1736910235458,0.47023797,97092.0,97091.0,0.3098438]
[1736910235816,0.47223797,97092.0,97091.0,0.3098438]
[1736910236034,0.47123797,97092.0,97091.0,0.3098438]
[1736910236195,0.56352446,97092.0,97091.0,0.3098438]
[1736910236405,0.56452446,97092.0,97091.0,0.3098438]
[1736910236972,0.47223797,97092.0,97091.0,0.3098438]
[1736910237150,0.47023797,97092.0,97091.0,0.3098438]
[1736910237351,0.47223797,97092.0,97091.0,0.3098438]
[1736910238331,0.77646489,97092.0,97091.0,0.23332627]
[1736910238509,1.10626489,97092.0,97091.0,0.08280027]
[1736910238714,1.10626489,97092.0,97091.0,0.0008538]
[1736910238938,1.10526489,97092.0,97091.0,8e-07]
[1736910239145,1.10626489,97092.0,97091.0,8e-07]
[1736910239346,1.44671937,97092.0,97091.0,8e-07]
[1736910239728,1.44571937,97092.0,97091.0,8e-07]
[1736910239925,1.44671937,97092.0,97091.0,8e-07]
[1736910240120,1.44471937,97092.0,97091.0,8e-07]
[1736910240407,1.44971937,97092.0,97091.0,8e-07]
[1736910240808,1.44471937,97092.0,97091.0,8e-07]
[1736910241043,1.45071937,97092.0,97091.0,0.0010008]
[1736910241244,1.44971937,97092.0,97091.0,0.0010008]
[1736910241643,1.45171937,97092.0,97091.0,8e-07]
[1736910241844,0.08249843,97074.0,97050.0,0.0008538]
[1736910242883,0.18578377,97074.0,97050.0,0.0008538]
[1736910243310,0.18678377,97074.0,97050.0,0.0008538]
[1736910243680,0.3473446,97074.0,97050.0,0.0008538]
[1736910244573,0.24705926,97074.0,97050.0,0.0008538]
[1736910244993,0.24805926,97074.0,97050.0,0.0008538]
[1736910245651,0.26870521,97074.0,97050.0,0.0008538]
[1736910247341,0.28485717,97074.0,97050.0,0.0008538]
[1736910247659,0.26870521,97074.0,97050.0,0.0008538]
[1736910247881,0.37293213,97074.0,97050.0,0.0008538]
[1736910250094,0.57715905,97074.0,97050.0,0.0008538]
[1736910250359,0.43249843,97073.0,97072.0,5.6e-07]
[1736910250565,0.43249843,97073.0,97050.0,0.0008538]
[1736910250566,0.08249843,97051.0,97050.0,0.0008538]
[1736910250746,0.43857543,97051.0,97050.0,0.0008538]
[1736910252239,0.44357543,97051.0,97050.0,0.0008538]
[1736910252457,0.44457543,97051.0,97050.0,0.0008538]
[1736910252676,0.55859406,97051.0,97050.0,0.0008538]
[1736910253450,0.55359406,97051.0,97050.0,0.0008538]
[1736910253831,0.55759406,97051.0,97050.0,0.0008538]
[1736910254135,0.55359406,97051.0,97050.0,0.0008538]
[1736910254336,0.46023262,97051.0,97050.0,0.0008538]
[1736910254582,0.46323262,97051.0,97050.0,0.0008538]
[1736910254783,0.45923262,97051.0,97050.0,0.0008538]
[1736910254962,0.47070075,97051.0,97050.0,0.0008538]
[1736910255167,0.47370075,97051.0,97050.0,0.0008538]
[1736910255549,0.47270075,97051.0,97050.0,0.0008538]
[1736910256495,0.56218472,97051.0,97050.0,0.0008538]
[1736910256735,0.55918472,97051.0,97050.0,0.0008538]
[1736910256937,0.56218472,97051.0,97050.0,0.0008538]
[1736910257650,0.56418472,97051.0,97050.0,0.0008538]
[1736910257894,0.55818472,97051.0,97050.0,0.0008538]
[1736910258143,0.56218472,97051.0,97050.0,0.0008538]
[1736910258479,0.56118472,97051.0,97050.0,0.0008538]
[1736910258686,0.56218472,97051.0,97050.0,0.0008538]
[1736910259380,0.47370075,97051.0,97050.0,0.0008538]
[1736910260338,0.47070075,97051.0,97050.0,0.0008538]
[1736910260846,0.45104356,97051.0,97050.0,0.0008538]
[1736910261572,0.44904356,97051.0,97050.0,0.0008538]
[1736910261996,0.4726345,97051.0,97050.0,0.0008538]
[1736910262258,0.56111185,97051.0,97050.0,0.0008538]
[1736910263239,0.55811185,97051.0,97050.0,0.0008538]
[1736910263499,0.53852091,97051.0,97050.0,0.0008538]
[1736910263703,0.53752091,97051.0,97050.0,0.0008538]
[1736910263945,0.44904356,97051.0,97050.0,0.0008538]
[1736910264215,0.44904356,97051.0,97050.0,0.0780538]
[1736910264216,0.28957543,97051.0,97050.0,0.0780538]
[1736910264471,0.28857543,97051.0,97050.0,0.0008538]
[1736910264745,0.50964687,97051.0,97050.0,0.0008538]
[1736910265435,0.50864687,97051.0,97050.0,0.0008538]
[1736910266879,0.50964687,97051.0,97050.0,0.0008538]
[1736910267123,0.50864687,97051.0,97050.0,0.0008538]
[1736910267378,0.50964687,97051.0,97050.0,0.0008538]
[1736910267608,0.50864687,97051.0,97050.0,0.0008538]
[1736910268067,0.51264687,97051.0,97050.0,0.0008538]
[1736910268688,0.51164687,97051.0,97050.0,0.0008538]
[1736910268904,0.51264687,97051.0,97050.0,0.0008538]
[1736910269886,0.50964687,97051.0,97050.0,0.0008538]
[1736910270713,0.51264687,97051.0,97050.0,0.02917413]
[1736910274169,0.44257543,97051.0,97050.0,0.02917413]
[1736910274575,0.44257543,97051.0,97050.0,0.10637413]
[1736910274993,0.44257543,97051.0,97050.0,0.02917413]
[1736910276292,0.44157543,97051.0,97050.0,0.02917413]
[1736910276493,0.43857543,97051.0,97050.0,0.02917413]
[1736910276842,0.54680235,97051.0,97050.0,0.02917413]
[1736910277083,0.54380235,97051.0,97050.0,0.02917413]
[1736910277292,0.54280235,97051.0,97050.0,0.02917413]
[1736910277514,0.54380235,97051.0,97050.0,0.02917413]
[1736910281132,0.63594904,97051.0,97050.0,0.02917413]